[Event "FIDE WYCC Open U14 2023"]
[Site "Montesilvano"]
[Date "2023.11.16"]
[Round "4.11"]
[White "Nurgaliyev, Sauat"]
[Black "Artemov, Andriy"]
[Result "0-1"]
[ECO "C65"]
[WhiteElo "2235"]
[BlackElo "1779"]
[Annotator "RC"]
[PlyCount "102"]
[EventDate "2023.11.13"]
[EventType "swiss"]
[EventCountry "ITA"]
[SourceTitle "playchess.com"]
[Source "ChessBase"]
[SourceQuality "1"]
[TimeControl "40/5400+30:1800+30"]

1. e4 {[%emt 0:00:04]} e5 {[%emt 0:00:26]} 2. Nf3 {[%emt 0:00:12]} Nc6 {[%emt 0:00:08]} 3. Bb5 {[%emt 0:00:18]} Nf6 {[%emt 0:00:06]} 4. Bxc6 {[%emt 0:00:21]} dxc6 {[%emt 0:00:12]} 5. d3 {[%emt 0:00:05]} Nd7 {[%emt 0:05:57]} 6. O-O {[%emt 0:03:05]} Bc5 {[%emt 0:01:01]} 7. Nbd2 {[%emt 0:02:32]} b6 {[%emt 0:00:17]} 8. c3 {[%emt 0:02:34]} a5 {[%emt 0:02:29]} 9. Nc4 {[%emt 0:01:23]} f6 {[%emt 0:02:29]} 10. d4 {[%emt 0:01:42]} Ba6 {[%emt 0:00:35]} 11. b3 {[%emt 0:02:27]} Bd6 {[%emt 0:30:08]} 12. Nh4 {[%emt 0:07:17]} g6 {[%emt 0:06:25]} 13. Bh6 {[%emt 0:27:26]} Qe7 {[%emt 0:01:32]} 14. Re1 {[%emt 0:04:36]} O-O-O {[%emt 0:03:13]} 15. Qe2 {[%emt 0:02:45]} Kb7 {[%emt 0:01:32]} 16. Qb2 {[%emt 0:05:13]} Nf8 {[%emt 0:06:15]} 17. dxe5 {[%emt 0:10:49]} Bxe5 {[%emt 0:04:51]} 18. Nxe5 {[%emt 0:01:37]} fxe5 {[%emt 0:00:18]} 19. Nf3 {[%emt 0:00:11]} Ne6 {[%emt 0:00:35]} 20. Be3 {[%emt 0:04:59]} Nf4 {[%emt 0:06:23]} 21. Bxf4 {[%emt 0:02:25]} exf4 {[%emt 0:00:06]} 22. c4 {[%emt 0:01:10]} Rhe8 {[%emt 0:02:19]} 23. a3 {[%emt 0:06:52]} c5 {[%emt 0:00:13]} 24. e5 {[%emt 0:03:40]} g5 {[%emt 0:01:04]} 25. Nd2 {[%emt 0:00:36]} g4 {[%emt 0:00:33]} 26. e6 {[%emt 0:00:42]} Rd6 {[%emt 0:00:45]} 27. b4 {[%emt 0:01:34]} Ka7 {[%emt 0:00:11]} 28. bxc5 {[%emt 0:01:44]} Rxe6 {[%emt 0:00:19]} 29. cxb6+ {[%emt 0:01:20]} cxb6 {[%emt 0:00:06]} 30. Rxe6 {[%emt 0:00:39]} Qxe6 {[%emt 0:00:02]} 31. Rb1 {[%emt 0:00:42]} Bxc4 {[%emt 0:01:16]} 32. Qc2 {[%emt 0:03:49]} Ba6 {[%emt 0:01:31]} 33. h3 {[%emt 0:00:59]} g3 {[%emt 0:01:32]} 34. Qc7+ {[%emt 0:00:25]} Bb7 {[%emt 0:00:08]} 35. Qxf4 {[%emt 0:01:00]} Qe2 {[%emt 0:01:09]} 36. Nf1 {[%emt 0:00:36]} Qc2 {[%emt 0:00:52]} 37. Rb5 {[%emt 0:00:38]} Qc6 {[%emt 0:00:22]} 38. Qxg3 {[%emt 0:00:32]} Qxb5 {[%emt 0:00:06]} 39. Ne3 {[%emt 0:00:24]} Qc5 {[%emt 0:00:35]} 40. Qg7 {[%emt 0:00:00]} Re7 {[%emt 0:00:00]} 41. Qf6 {[%emt 0:03:05]} Qc1+ {[%emt 0:01:32]} 42. Kh2 {[%emt 0:00:22]} Qc7+ {[%emt 0:00:11]} 43. Kg1 {[%emt 0:01:11]} Rf7 {[%emt 0:00:21]} 44. Qb2 {[%emt 0:01:01]} Qc5 {[%emt 0:00:34]} 45. Ng4 {[%emt 0:00:26]} h5 {[%emt 0:00:31]} 46. Ne5 {[%emt 0:00:15]} Re7 {[%emt 0:00:25]} 47. Nd3 {[%emt 0:01:05]} Qf5 {[%emt 0:00:44]} 48. Qc3 {[%emt 0:00:28]} Qe4 {[%emt 0:00:30]} 49. f3 {[%emt 0:00:43]} Qe3+ {[%emt 0:00:05]} 50. Kh1 {[%emt 0:05:32]} Rd7 {[%emt 0:00:43]} 51. Qe5 {[%emt 0:01:57]} Qxd3 {[%emt 0:00:08]} 0-1

[Event "FIDE WYCC Open U14 2023"]
[Site "Montesilvano"]
[Date "2023.11.16"]
[Round "4.12"]
[White "Prokhorov, Aleksey"]
[Black "Haug, Havard"]
[Result "1/2-1/2"]
[ECO "B15"]
[WhiteElo "1869"]
[BlackElo "2223"]
[Annotator "RC"]
[PlyCount "106"]
[EventDate "2023.11.13"]
[EventType "swiss"]
[EventCountry "ITA"]
[SourceTitle "playchess.com"]
[Source "ChessBase"]
[SourceQuality "1"]
[TimeControl "40/5400+30:1800+30"]

1. e4 {[%emt 0:01:03]} c6 {[%emt 0:00:29]} 2. d4 {[%emt 0:00:59]} d5 {[%emt 0:00:10]} 3. Nd2 {[%emt 0:01:01]} dxe4 {[%emt 0:00:12]} 4. Nxe4 {[%emt 0:01:01]} Nf6 {[%emt 0:00:12]} 5. Nxf6+ {[%emt 0:01:04]} exf6 {[%emt 0:00:19]} 6. c3 {[%emt 0:00:54]} Bd6 {[%emt 0:00:30]} 7. Bd3 {[%emt 0:01:09]} O-O {[%emt 0:00:31]} 8. Qc2 {[%emt 0:01:31]} Re8+ {[%emt 0:00:09]} 9. Ne2 {[%emt 0:00:53]} h6 {[%emt 0:00:12]} 10. O-O {[%emt 0:01:19]} Na6 {[%emt 0:02:13]} 11. Bd2 {[%emt 0:03:08]} Nc7 {[%emt 0:00:30]} 12. Rae1 {[%emt 0:01:32]} b5 {[%emt 0:03:41]} 13. f4 {[%emt 0:07:16]} c5 {[%emt 0:05:57]} 14. Ng3 {[%emt 0:05:10]} cxd4 {[%emt 0:04:21]} 15. Rxe8+ {[%emt 0:06:48]} Qxe8 {[%emt 0:01:20]} 16. Re1 {[%emt 0:06:29]} Qd8 {[%emt 0:01:16]} 17. Be4 {[%emt 0:08:22]} Rb8 {[%emt 0:05:43]} 18. cxd4 {[%emt 0:01:35]} Bf8 {[%emt 0:05:48]} 19. Kh1 {[%emt 0:20:50]} Nd5 {[%emt 0:06:22]} 20. Qb3 {[%emt 0:11:27]} Bb7 {[%emt 0:05:05]} 21. Rc1 {[%emt 0:00:55]} Qd7 {[%emt 0:05:28]} 22. Bd3 {[%emt 0:00:44]} a6 {[%emt 0:02:33]} 23. Bf5 {[%emt 0:01:49]} Qd8 {[%emt 0:01:04]} 24. Qd3 {[%emt 0:01:24]} Bd6 {[%emt 0:05:03]} 25. Ne2 {[%emt 0:02:12]} Qe7 {[%emt 0:03:34]} 26. Qe4 {[%emt 0:04:45]} Qf8 {[%emt 0:02:38]} 27. Qd3 {[%emt 0:00:48]} g6 {[%emt 0:01:53]} 28. Be4 {[%emt 0:00:24]} f5 {[%emt 0:00:58]} 29. Bf3 {[%emt 0:00:06]} Qe7 {[%emt 0:01:16]} 30. Re1 {[%emt 0:04:25]} Re8 {[%emt 0:02:21]} 31. Ng1 {[%emt 0:00:21]} Qd7 {[%emt 0:01:48]} 32. Rxe8+ {[%emt 0:00:16]} Qxe8 {[%emt 0:00:01]} 33. Qb3 {[%emt 0:00:16]} Qa8 {[%emt 0:00:27]} 34. Ne2 {[%emt 0:00:40]} Nf6 {[%emt 0:01:11]} 35. Kg1 {[%emt 0:01:51]} Ne4 {[%emt 0:01:43]} 36. Be3 {[%emt 0:00:05]} Qd8 {[%emt 0:03:04]} 37. a4 {[%emt 0:00:34]} Qa5 {[%emt 0:00:38]} 38. Nc3 {[%emt 0:01:32]} Nxc3 {[%emt 0:01:22]} 39. Bxb7 {[%emt 0:00:38]} Nxa4 {[%emt 0:03:51]} 40. Kf2 {[%emt 0:00:00]} Qb6 {[%emt 0:00:00]} 41. Bf3 {[%emt 0:07:05]} Qc7 {[%emt 0:02:02]} 42. g3 {[%emt 0:00:13]} Nb6 {[%emt 0:01:24]} 43. Qd3 {[%emt 0:00:48]} Nc4 {[%emt 0:01:40]} 44. Qc2 {[%emt 0:01:43]} Qb6 {[%emt 0:05:16]} 45. Bd5 {[%emt 0:01:17]} Qc7 {[%emt 0:03:31]} 46. Ke2 {[%emt 0:09:15]} Qb8 {[%emt 0:07:37]} 47. b3 {[%emt 0:02:46]} Nxe3 {[%emt 0:00:55]} 48. Kxe3 {[%emt 0:00:27]} Qe8+ {[%emt 0:01:13]} 49. Kf3 {[%emt 0:01:05]} Qe1 {[%emt 0:01:53]} 50. Qc6 {[%emt 0:00:55]} Qf1+ {[%emt 0:01:01]} 51. Ke3 {[%emt 0:00:08]} Qg1+ {[%emt 0:00:12]} 52. Kf3 {[%emt 0:00:39]} Qf1+ {[%emt 0:01:51]} 53. Ke3 {[%emt 0:00:05]} Qe1+ {[%emt 0:00:05]} 1/2-1/2

[Event "FIDE WYCC Open U14 2023"]
[Site "Montesilvano"]
[Date "2023.11.16"]
[Round "4.13"]
[White "Lira, Suan Bruno Fernandes"]
[Black "Ermitsch, Magnus"]
[Result "0-1"]
[ECO "D37"]
[WhiteElo "1858"]
[BlackElo "2206"]
[Annotator "RC"]
[PlyCount "56"]
[EventDate "2023.11.13"]
[EventType "swiss"]
[EventCountry "ITA"]
[SourceTitle "playchess.com"]
[Source "ChessBase"]
[SourceQuality "1"]
[TimeControl "40/5400+30:1800+30"]

1. d4 {[%emt 0:00:03]} Nf6 {[%emt 0:00:06]} 2. c4 {[%emt 0:00:04]} e6 {[%emt 0:00:05]} 3. Nf3 {[%emt 0:00:05]} d5 {[%emt 0:00:04]} 4. Nc3 {[%emt 0:00:38]} Be7 {[%emt 0:00:11]} 5. Bf4 {[%emt 0:00:22]} O-O {[%emt 0:00:08]} 6. e3 {[%emt 0:00:05]} b6 {[%emt 0:00:13]} 7. Bd3 {[%emt 0:01:01]} c5 {[%emt 0:00:53]} 8. cxd5 {[%emt 0:05:08]} Nxd5 {[%emt 0:00:44]} 9. Nxd5 {[%emt 0:00:45]} exd5 {[%emt 0:01:20]} 10. dxc5 {[%emt 0:07:53]} bxc5 {[%emt 0:00:27]} 11. O-O {[%emt 0:00:27]} Be6 {[%emt 0:02:31]} 12. Ne5 {[%emt 0:02:32]} c4 {[%emt 0:08:52]} 13. Be2 {[%emt 0:08:04]} f6 {[%emt 0:05:37]} 14. Nf3 {[%emt 0:00:56]} Nc6 {[%emt 0:00:32]} 15. Nd4 {[%emt 0:05:25]} Nxd4 {[%emt 0:01:09]} 16. Qxd4 {[%emt 0:00:45]} Qb6 {[%emt 0:00:35]} 17. Rfd1 {[%emt 0:05:23]} Bc5 {[%emt 0:02:11]} 18. Qc3 {[%emt 0:00:09]} Rfd8 {[%emt 0:01:57]} 19. Qc2 {[%emt 0:03:01]} Rac8 {[%emt 0:02:18]} 20. Bg3 {[%emt 0:03:56]} Bf7 {[%emt 0:12:00]} 21. Bg4 {[%emt 0:06:11]} Rc6 {[%emt 0:00:48]} 22. Bf3 {[%emt 0:01:46]} Rcc8 {[%emt 0:07:06]} 23. Bg4 {[%emt 0:08:04]} Bg6 {[%emt 0:01:25]} 24. Qc3 {[%emt 0:01:51]} Rc6 {[%emt 0:01:14]} 25. Bf3 {[%emt 0:01:36]} Bd3 {[%emt 0:03:18]} 26. Rxd3 {[%emt 0:09:25]} cxd3 {[%emt 0:02:38]} 27. Bxd5+ {[%emt 0:01:52]} Rxd5 {[%emt 0:00:15]} 28. Qc4 {[%emt 0:00:06]} Qd8 {[%emt 0:00:05]} 0-1

[Event "FIDE WYCC Open U14 2023"]
[Site "Montesilvano"]
[Date "2023.11.16"]
[Round "4.14"]
[White "Davudov, Tunar"]
[Black "Tabuenca Mendataurigoitia, Daniel"]
[Result "0-1"]
[ECO "B12"]
[WhiteElo "2000"]
[BlackElo "2383"]
[Annotator "RC"]
[PlyCount "132"]
[EventDate "2023.11.13"]
[EventType "swiss"]
[EventCountry "ITA"]
[SourceTitle "playchess.com"]
[Source "ChessBase"]
[SourceQuality "1"]
[TimeControl "40/5400+30:1800+30"]

1. e4 {[%emt 0:00:02]} c6 {[%emt 0:00:24]} 2. d4 {[%emt 0:00:57]} d5 {[%emt 0:00:13]} 3. e5 {[%emt 0:02:46]} Bf5 {[%emt 0:00:14]} 4. h4 {[%emt 0:01:09]} h5 {[%emt 0:00:13]} 5. Nf3 {[%emt 0:02:49]} e6 {[%emt 0:02:11]} 6. Bd3 {[%emt 0:01:32]} Bxd3 {[%emt 0:02:36]} 7. Qxd3 {[%emt 0:00:18]} Qa5+ {[%emt 0:01:21]} 8. Nbd2 {[%emt 0:08:35]} Nh6 {[%emt 0:02:38]} 9. O-O {[%emt 0:04:47]} Nf5 {[%emt 0:01:22]} 10. c4 {[%emt 0:04:30]} Be7 {[%emt 0:03:04]} 11. g3 {[%emt 0:07:57]} O-O {[%emt 0:03:48]} 12. b3 {[%emt 0:17:08]} Rd8 {[%emt 0:08:29]} 13. Rd1 {[%emt 0:11:27]} c5 {[%emt 0:13:34]} 14. Bb2 {[%emt 0:12:10]} Nc6 {[%emt 0:03:57]} 15. dxc5 {[%emt 0:03:19]} Bxc5 {[%emt 0:05:18]} 16. Kg2 {[%emt 0:02:30]} dxc4 {[%emt 0:16:47]} 17. Qxc4 {[%emt 0:00:37]} Bxf2 {[%emt 0:01:01]} 18. Kxf2 {[%emt 0:01:31]} Qb6+ {[%emt 0:00:16]} 19. Ke1 {[%emt 0:00:17]} Nb4 {[%emt 0:04:30]} 20. Nf1 {[%emt 0:05:13]} Rdc8 {[%emt 0:01:50]} 21. Qe4 {[%emt 0:02:30]} Nc2+ {[%emt 0:05:37]} 22. Ke2 {[%emt 0:00:27]} Nxa1 {[%emt 0:02:26]} 23. Rxa1 {[%emt 0:00:07]} Rd8 {[%emt 0:06:00]} 24. Bc1 {[%emt 0:07:02]} Rac8 {[%emt 0:02:06]} 25. Be3 {[%emt 0:01:33]} Qa6+ {[%emt 0:00:54]} 26. Kf2 {[%emt 0:00:07]} Rd3 {[%emt 0:01:40]} 27. Ne1 {[%emt 0:00:29]} Rdc3 {[%emt 0:01:55]} 28. Bf4 {[%emt 0:00:45]} Rxb3 {[%emt 0:02:43]} 29. axb3 {[%emt 0:00:28]} Qxa1 {[%emt 0:00:06]} 30. Qxb7 {[%emt 0:01:12]} Qd4+ {[%emt 0:06:29]} 31. Be3 {[%emt 0:00:06]} Qb2+ {[%emt 0:00:14]} 32. Nd2 {[%emt 0:00:44]} Rc3 {[%emt 0:00:21]} 33. Bf4 {[%emt 0:01:16]} Rxg3 {[%emt 0:01:22]} 34. Nef3 {[%emt 0:00:37]} Rg4 {[%emt 0:00:32]} 35. Bg5 {[%emt 0:00:30]} Nd4 {[%emt 0:00:51]} 36. Qa8+ {[%emt 0:00:29]} Kh7 {[%emt 0:00:06]} 37. Qb7 {[%emt 0:00:32]} Nxf3 {[%emt 0:00:13]} 38. Kxf3 {[%emt 0:00:17]} Qc3+ {[%emt 0:00:22]} 39. Be3 {[%emt 0:00:42]} Rxh4 {[%emt 0:00:38]} 40. Qxa7 {[%emt 0:00:00]} Qxe5 {[%emt 0:00:00]} 41. Qc5 {[%emt 0:03:09]} Qh2 {[%emt 0:03:08]} 42. Bf2 {[%emt 0:05:06]} Rf4+ {[%emt 0:00:36]} 43. Ke2 {[%emt 0:00:08]} Rf5 {[%emt 0:00:07]} 44. Qd4 {[%emt 0:01:00]} Rd5 {[%emt 0:03:07]} 45. Qa7 {[%emt 0:02:19]} Qe5+ {[%emt 0:01:16]} 46. Be3 {[%emt 0:02:42]} Qc3 {[%emt 0:01:45]} 47. Qa6 {[%emt 0:07:39]} Qe5 {[%emt 0:01:26]} 48. Qa7 {[%emt 0:01:10]} Qf5 {[%emt 0:00:05]} 49. Qa6 {[%emt 0:02:17]} Qg4+ {[%emt 0:01:29]} 50. Ke1 {[%emt 0:01:08]} h4 {[%emt 0:00:53]} 51. Qe2 {[%emt 0:02:43]} Qg3+ {[%emt 0:06:47]} 52. Bf2 {[%emt 0:00:36]} Qf4 {[%emt 0:01:39]} 53. Be3 {[%emt 0:00:31]} Qf6 {[%emt 0:01:28]} 54. Qg4 {[%emt 0:00:48]} Kg8 {[%emt 0:01:26]} 55. Ke2 {[%emt 0:00:37]} g6 {[%emt 0:03:00]} 56. Ne4 {[%emt 0:01:54]} Qb2+ {[%emt 0:00:20]} 57. Nd2 {[%emt 0:00:24]} Qc3 {[%emt 0:03:52]} 58. Qxh4 {[%emt 0:02:40]} Qd3+ {[%emt 0:00:04]} 59. Kf2 {[%emt 0:00:14]} Rf5+ {[%emt 0:00:47]} 60. Nf3 {[%emt 0:00:07]} Qd5 {[%emt 0:00:07]} 61. Qg4 {[%emt 0:01:05]} Qxb3 {[%emt 0:00:05]} 62. Bd4 {[%emt 0:01:57]} Qd5 {[%emt 0:00:43]} 63. Be3 {[%emt 0:01:36]} e5 {[%emt 0:00:26]} 64. Ke2 {[%emt 0:00:40]} e4 {[%emt 0:00:35]} 65. Nd4 {[%emt 0:00:32]} Qc4+ {[%emt 0:00:06]} 66. Ke1 {[%emt 0:00:29]} Rf1+ {[%emt 0:00:11]} 0-1

[Event "FIDE WYCC Open U14 2023"]
[Site "Montesilvano"]
[Date "2023.11.16"]
[Round "4.15"]
[White "Villa Tornero, Alex"]
[Black "Sommer, Justus"]
[Result "1/2-1/2"]
[ECO "C77"]
[WhiteElo "2383"]
[BlackElo "2013"]
[Annotator "RC"]
[PlyCount "178"]
[EventDate "2023.11.13"]
[EventType "swiss"]
[EventCountry "ITA"]
[SourceTitle "playchess.com"]
[Source "ChessBase"]
[SourceQuality "1"]
[TimeControl "40/5400+30:1800+30"]

1. e4 {[%emt 0:00:31]} e5 {[%emt 0:00:10]} 2. Nf3 {[%emt 0:00:18]} Nc6 {[%emt 0:00:12]} 3. Bb5 {[%emt 0:00:42]} a6 {[%emt 0:00:14]} 4. Ba4 {[%emt 0:00:05]} Nf6 {[%emt 0:00:16]} 5. d3 d6 6. c3 {[%emt 0:07:53]} b5 {[%emt 0:05:40]} 7. Bc2 {[%emt 0:00:43]} g6 {[%emt 0:03:40]} 8. O-O {[%emt 0:02:01]} Bg7 {[%emt 0:00:44]} 9. h3 {[%emt 0:01:06]} O-O {[%emt 0:01:22]} 10. Be3 {[%emt 0:00:53]} Re8 {[%emt 0:05:24]} 11. Re1 {[%emt 0:01:47]} d5 {[%emt 0:04:27]} 12. a4 {[%emt 0:21:12]} Bb7 {[%emt 0:07:00]} 13. Qc1 {[%emt 0:13:45]} b4 {[%emt 0:18:50]} 14. Nbd2 {[%emt 0:01:44]} Qd6 {[%emt 0:09:26]} 15. exd5 {[%emt 0:03:50]} Qxd5 {[%emt 0:01:33]} 16. Bg5 {[%emt 0:03:53]} Nd7 {[%emt 0:09:14]} 17. Bb3 {[%emt 0:05:10]} Qxd3 {[%emt 0:07:36]} 18. Bc4 {[%emt 0:10:41]} Qd6 {[%emt 0:00:42]} 19. Ne4 {[%emt 0:00:04]} Qf8 {[%emt 0:00:16]} 20. Qd2 {[%emt 0:07:18]} Nb6 {[%emt 0:02:19]} 21. Ba2 {[%emt 0:00:34]} bxc3 {[%emt 0:02:10]} 22. bxc3 {[%emt 0:02:02]} Na5 {[%emt 0:02:32]} 23. Nf6+ {[%emt 0:01:20]} Bxf6 {[%emt 0:00:11]} 24. Bxf6 {[%emt 0:00:01]} Bxf3 {[%emt 0:01:38]} 25. gxf3 {[%emt 0:00:01]} Nac4 {[%emt 0:01:46]} 26. Qg5 {[%emt 0:03:36]} Qc5 {[%emt 0:05:10]} 27. Re4 {[%emt 0:03:03]} Re6 {[%emt 0:05:45]} 28. Qh4 {[%emt 0:03:54]} h5 {[%emt 0:01:08]} 29. Bxc4 {[%emt 0:00:58]} Rxf6 {[%emt 0:00:23]} 30. Qxf6 {[%emt 0:00:14]} Nxc4 {[%emt 0:00:07]} 31. Rd1 {[%emt 0:00:25]} Re8 {[%emt 0:01:28]} 32. f4 {[%emt 0:01:29]} Nd6 {[%emt 0:02:30]} 33. Rxe5 {[%emt 0:00:16]} Qc6 {[%emt 0:00:21]} 34. c4 {[%emt 0:02:04]} Qxa4 {[%emt 0:01:12]} 35. Rxe8+ {[%emt 0:01:34]} Qxe8 {[%emt 0:00:06]} 36. c5 {[%emt 0:01:07]} Nb7 {[%emt 0:02:01]} 37. c6 {[%emt 0:01:14]} Nd6 {[%emt 0:00:07]} 38. Rxd6 {[%emt 0:00:57]} cxd6 {[%emt 0:00:34]} 39. c7 {[%emt 0:00:06]} Qe1+ {[%emt 0:00:11]} 40. Kg2 {[%emt 0:00:00]} Qe4+ {[%emt 0:00:00]} 41. Kg3 {[%emt 0:12:50]} h4+ {[%emt 0:11:37]} 42. Kxh4 {[%emt 0:00:51]} Qc2 {[%emt 0:01:32]} 43. Kg5 {[%emt 0:01:19]} Qxc7 {[%emt 0:05:13]} 44. Kh6 {[%emt 0:03:28]} Kf8 {[%emt 0:00:25]} 45. Qh8+ {[%emt 0:01:20]} Ke7 {[%emt 0:00:14]} 46. Qa8 {[%emt 0:00:03]} Qd8 {[%emt 0:04:29]} 47. Qe4+ {[%emt 0:01:33]} Kf8 {[%emt 0:00:17]} 48. f5 {[%emt 0:00:07]} gxf5 {[%emt 0:02:13]} 49. Qd4 {[%emt 0:00:08]} Ke7 {[%emt 0:01:12]} 50. Qe3+ {[%emt 0:00:33]} Kd7 {[%emt 0:00:46]} 51. Kg7 {[%emt 0:00:33]} Kc6 {[%emt 0:03:21]} 52. Qc3+ {[%emt 0:00:27]} Kd5 {[%emt 0:00:32]} 53. Qd3+ {[%emt 0:01:04]} Kc5 {[%emt 0:01:35]} 54. Qxf5+ {[%emt 0:04:32]} d5 {[%emt 0:00:08]} 55. Kxf7 {[%emt 0:00:13]} Qc7+ {[%emt 0:00:39]} 56. Ke8 {[%emt 0:01:29]} Qc6+ {[%emt 0:00:16]} 57. Kd8 {[%emt 0:00:19]} Qa8+ {[%emt 0:00:40]} 58. Ke7 {[%emt 0:00:11]} Qb7+ {[%emt 0:00:09]} 59. Kf6 {[%emt 0:00:27]} Qb6+ {[%emt 0:00:21]} 60. Kg5 {[%emt 0:00:28]} Qd8+ {[%emt 0:00:08]} 61. Kf4 {[%emt 0:00:48]} Qd6+ {[%emt 0:00:48]} 62. Kf3 {[%emt 0:00:34]} Kc4 {[%emt 0:02:09]} 63. h4 {[%emt 0:01:02]} d4 {[%emt 0:00:33]} 64. Qc2+ {[%emt 0:00:03]} Kb4 {[%emt 0:00:35]} 65. Qd3 {[%emt 0:01:22]} Qf6+ {[%emt 0:00:30]} 66. Kg3 {[%emt 0:00:40]} Qg7+ {[%emt 0:00:22]} 67. Kh3 {[%emt 0:00:38]} Qd7+ {[%emt 0:00:09]} 68. Kg3 {[%emt 0:02:18]} Qg7+ {[%emt 0:00:07]} 69. Kh3 {[%emt 0:02:08]} Qd7+ {[%emt 0:00:05]} 70. Kh2 {[%emt 0:00:03]} Qd6+ {[%emt 0:00:10]} 71. Kg2 {[%emt 0:00:14]} Qf4 {[%emt 0:01:22]} 72. h5 {[%emt 0:00:52]} Qg5+ {[%emt 0:00:42]} 73. Kf1 {[%emt 0:00:06]} Qxh5 {[%emt 0:00:25]} 74. Qxd4+ {[%emt 0:00:02]} Kb5 {[%emt 0:00:15]} 75. f4 {[%emt 0:01:47]} Qf3+ {[%emt 0:00:25]} 76. Ke1 {[%emt 0:00:07]} a5 {[%emt 0:01:22]} 77. Qe5+ {[%emt 0:00:46]} Kb4 {[%emt 0:00:06]} 78. f5 {[%emt 0:00:25]} a4 {[%emt 0:01:02]} 79. Qd4+ {[%emt 0:00:46]} Kb3 {[%emt 0:01:11]} 80. f6 {[%emt 0:00:33]} a3 {[%emt 0:00:24]} 81. Qb6+ {[%emt 0:00:07]} Kc2 {[%emt 0:00:37]} 82. Qe6 {[%emt 0:01:06]} Kb2 {[%emt 0:00:47]} 83. Qb6+ {[%emt 0:01:54]} Qb3 {[%emt 0:00:24]} 84. Qf2+ {[%emt 0:00:59]} Qc2 {[%emt 0:00:10]} 85. f7 {[%emt 0:01:48]} Qxf2+ {[%emt 0:00:29]} 86. Kxf2 {[%emt 0:00:01]} a2 {[%emt 0:00:09]} 87. f8=Q {[%emt 0:00:06]} a1=Q {[%emt 0:00:05]} 88. Qh8+ {[%emt 0:00:16]} Ka2 {[%emt 0:00:08]} 89. Qxa1+ Kxa1 {[%emt 0:00:08]} 1/2-1/2

[Event "FIDE WYCC Open U14 2023"]
[Site "Montesilvano"]
[Date "2023.11.16"]
[Round "4.16"]
[White "Agasarov, Benik"]
[Black "Bochniak, Franciszek"]
[Result "1-0"]
[ECO "A50"]
[WhiteElo "2360"]
[BlackElo "1954"]
[Annotator "RC"]
[PlyCount "53"]
[EventDate "2023.11.13"]
[EventType "swiss"]
[EventCountry "ITA"]
[SourceTitle "playchess.com"]
[Source "ChessBase"]
[SourceQuality "1"]
[TimeControl "40/5400+30:1800+30"]

1. d4 {[%emt 0:00:04]} Nf6 {[%emt 0:00:07]} 2. c4 {[%emt 0:00:12]} b6 {[%emt 0:00:06]} 3. f3 {[%emt 0:00:25]} Nc6 {[%emt 0:00:05]} 4. Nc3 {[%emt 0:00:05]} e6 {[%emt 0:02:48]} 5. e4 {[%emt 0:00:27]} d6 {[%emt 0:06:36]} 6. Be3 {[%emt 0:02:49]} e5 {[%emt 0:01:25]} 7. d5 {[%emt 0:00:43]} Ne7 {[%emt 0:00:07]} 8. Bd3 {[%emt 0:01:25]} Ng6 {[%emt 0:00:31]} 9. Nge2 {[%emt 0:00:26]} Be7 {[%emt 0:04:57]} 10. Qd2 {[%emt 0:02:14]} h5 {[%emt 0:06:45]} 11. O-O-O {[%emt 0:01:18]} h4 {[%emt 0:02:52]} 12. Kb1 {[%emt 0:02:16]} Bd7 {[%emt 0:05:03]} 13. g3 {[%emt 0:05:25]} h3 {[%emt 0:01:40]} 14. Rhf1 {[%emt 0:06:39]} c5 {[%emt 0:09:07]} 15. dxc6 {[%emt 0:01:24]} Bxc6 {[%emt 0:00:08]} 16. Nd5 {[%emt 0:00:47]} Bxd5 {[%emt 0:08:36]} 17. cxd5 {[%emt 0:00:51]} a6 {[%emt 0:00:02]} 18. Rc1 {[%emt 0:00:36]} Nd7 {[%emt 0:04:45]} 19. Rc6 {[%emt 0:02:19]} Bf8 {[%emt 0:00:33]} 20. Rfc1 {[%emt 0:02:01]} Nc5 {[%emt 0:00:34]} 21. b4 {[%emt 0:00:32]} Ne7 {[%emt 0:00:49]} 22. bxc5 {[%emt 0:00:08]} Nxc6 {[%emt 0:00:14]} 23. dxc6 {[%emt 0:00:23]} dxc5 {[%emt 0:00:38]} 24. Bc4 {[%emt 0:00:11]} Qc7 {[%emt 0:02:40]} 25. Rd1 {[%emt 0:03:58]} Ra7 {[%emt 0:03:21]} 26. Qd5 {[%emt 0:02:06]} g6 {[%emt 0:01:15]} 27. Bg5 {[%emt 0:00:17]} 1-0

[Event "FIDE WYCC Open U14 2023"]
[Site "Montesilvano"]
[Date "2023.11.16"]
[Round "4.17"]
[White "Nainys, Zanas"]
[Black "Arca, Christian Gian Karlo"]
[Result "0-1"]
[ECO "A31"]
[WhiteElo "1974"]
[BlackElo "2347"]
[Annotator "RC"]
[PlyCount "110"]
[EventDate "2023.11.13"]
[EventType "swiss"]
[EventCountry "ITA"]
[SourceTitle "playchess.com"]
[Source "ChessBase"]
[SourceQuality "1"]
[TimeControl "40/5400+30:1800+30"]

1. Nf3 {[%emt 0:00:02]} Nf6 {[%emt 0:00:04]} 2. c4 {[%emt 0:00:17]} c5 {[%emt 0:00:06]} 3. d4 {[%emt 0:00:17]} cxd4 {[%emt 0:02:05]} 4. Nxd4 {[%emt 0:00:01]} Nc6 {[%emt 0:00:44]} 5. g3 {[%emt 0:00:01]} g6 {[%emt 0:00:09]} 6. Bg2 {[%emt 0:00:01]} Bg7 {[%emt 0:00:07]} 7. Nc3 {[%emt 0:00:05]} O-O {[%emt 0:00:06]} 8. O-O {[%emt 0:00:14]} Qa5 {[%emt 0:04:18]} 9. Nb3 {[%emt 0:01:31]} Qh5 {[%emt 0:00:58]} 10. e4 {[%emt 0:01:48]} d6 {[%emt 0:00:16]} 11. Nd5 {[%emt 0:04:38]} Qxd1 {[%emt 0:00:59]} 12. Rxd1 {[%emt 0:00:19]} Nxd5 {[%emt 0:00:13]} 13. cxd5 {[%emt 0:02:32]} Ne5 {[%emt 0:00:06]} 14. Bg5 {[%emt 0:00:14]} Re8 {[%emt 0:02:29]} 15. Nd4 {[%emt 0:03:00]} Bd7 {[%emt 0:01:57]} 16. Rac1 {[%emt 0:01:54]} h6 {[%emt 0:00:14]} 17. Bf4 {[%emt 0:30:10]} Rac8 {[%emt 0:00:06]} 18. Bf1 {[%emt 0:02:30]} g5 {[%emt 0:03:37]} 19. Bd2 {[%emt 0:08:34]} Bg4 {[%emt 0:25:24]} 20. Rxc8 {[%emt 0:11:01]} Rxc8 {[%emt 0:01:22]} 21. Rc1 {[%emt 0:00:02]} Rxc1 {[%emt 0:00:22]} 22. Bxc1 {[%emt 0:00:01]} Nf3+ {[%emt 0:00:19]} 23. Nxf3 {[%emt 0:00:02]} Bxf3 {[%emt 0:00:06]} 24. Bg2 {[%emt 0:00:02]} Be2 {[%emt 0:00:07]} 25. Bf1 {[%emt 0:00:02]} Bd1 {[%emt 0:00:09]} 26. h3 {[%emt 0:08:57]} Bc2 {[%emt 0:01:14]} 27. f3 {[%emt 0:00:12]} Bd4+ {[%emt 0:00:08]} 28. Kg2 {[%emt 0:00:33]} a6 {[%emt 0:01:02]} 29. Bc4 {[%emt 0:02:45]} b5 {[%emt 0:00:16]} 30. Be2 {[%emt 0:00:02]} e6 {[%emt 0:00:51]} 31. dxe6 {[%emt 0:04:00]} fxe6 {[%emt 0:00:30]} 32. Kf1 {[%emt 0:03:06]} Be5 {[%emt 0:20:21]} 33. Kf2 {[%emt 0:03:25]} d5 {[%emt 0:00:30]} 34. exd5 {[%emt 0:00:10]} exd5 {[%emt 0:00:15]} 35. f4 {[%emt 0:01:06]} Bd4+ {[%emt 0:08:27]} 36. Be3 {[%emt 0:02:11]} Bxb2 {[%emt 0:01:16]} 37. fxg5 {[%emt 0:00:02]} d4 {[%emt 0:00:15]} 38. Bf4 {[%emt 0:00:01]} d3 {[%emt 0:00:09]} 39. Bf3 {[%emt 0:00:57]} hxg5 {[%emt 0:01:08]} 40. Bxg5 {[%emt 0:00:00]} b4 {[%emt 0:00:00]} 41. Be4 {[%emt 0:07:46]} a5 {[%emt 0:02:18]} 42. Bd2 {[%emt 0:03:26]} Bd4+ {[%emt 0:01:41]} 43. Kf3 {[%emt 0:00:34]} Bc5 {[%emt 0:07:11]} 44. Bd5+ {[%emt 0:03:22]} Kh7 {[%emt 0:02:50]} 45. Ke4 {[%emt 0:00:33]} a4 {[%emt 0:01:12]} 46. Bc4 {[%emt 0:00:11]} Bb1 {[%emt 0:05:37]} 47. h4 {[%emt 0:19:56]} Be7 {[%emt 0:03:10]} 48. Kd4 {[%emt 0:02:34]} Kg7 {[%emt 0:05:42]} 49. h5 {[%emt 0:02:46]} Bf6+ {[%emt 0:04:01]} 50. Ke4 {[%emt 0:00:07]} Bc2 {[%emt 0:01:15]} 51. g4 {[%emt 0:02:37]} a3 {[%emt 0:07:39]} 52. g5 {[%emt 0:04:46]} Bxg5 {[%emt 0:00:19]} 53. Bxd3 {[%emt 0:00:01]} Bxd3+ {[%emt 0:00:11]} 54. Kxd3 {[%emt 0:00:02]} Bxd2 {[%emt 0:00:02]} 55. Kxd2 {[%emt 0:00:13]} b3 {[%emt 0:00:03]} 0-1